Cogmind - Beta 12 @@@ ROGUE MODE // 2023.07.26 @ 22:25:43 Player: ZOT Result: Destroyed by G-34 Mercenary with Small Laser Performance ------------- Evolutions (1) 500 Regions Visited (3) 600 Robots Destroyed (32) 160 Value Destroyed (844) 844 Prototype IDs (1) 20 Alien Tech Used (0) 0 Bonus (24) 24 TOTAL SCORE: 2148 Bonus ------- High Alert Combat Kills 24 Cogmind --------- Core Integrity 0/400 Matter 300/300 Energy 100/100 System Corruption 0% Temperature Cool (15) Movement Core (350) Ox6 Location -9/Mines Parts ------- > --- POWER (1) -------- (None) > --- PROPULSION (4) --- (None) > --- UTILITY (2) ------ Large Storage Unit > --- WEAPON (2) ------- (None) > --- INVENTORY (15) --- Ion Engine Ion Engine Aluminum Leg Aluminum Leg Improved Aluminum Leg Improved Aluminum Leg Weight Redist. System Plasma Cutter Peak State ------------ > --- POWER ------------ Ion Engine > --- PROPULSION ------- Light Treads Improved Treads Improved Aluminum Leg Improved Aluminum Leg > --- UTILITY ---------- Medium Storage Unit Improved Terrain Scanner > --- WEAPON ----------- Improved Assault Rifle Plasma Cutter > --- INVENTORY -------- Ion Engine Light Treads Improved Aluminum Leg Improved Aluminum Leg Weight Redist. System Seismic Detector EM Pulse Gun Heavy Assault Rifle Light Cannon Plasma Cutter [Rating: 18] Favorites ----------- Power Ion Engine Engine Ion Engine Propulsion Improved Aluminum Leg Treads Light Treads Leg Improved Aluminum Leg Utility Improved Terrain Scanner Device Improved Terrain Scanner Storage Medium Storage Unit Weapon EM Pulse Gun Energy Gun EM Pulse Gun Ballistic Gun Heavy Assault Rifle Ballistic Cannon Light Cannon Special Weapon Plasma Cutter Build | -11 -10 -9 -9 ------- Run | Jun Mat Mat Min Slots Evolved 2 | . . 2 . Power . | . . . . Propulsion 2 | . . 2 . Utility . | . . . . Weapon . | . . . . Parts Attached 33 | 6 8 18 1 Power 3 | . 2 1 . Engine 3 | . 2 1 . Core . | . . . . Reactor . | . . . . Propulsion 12 | 2 2 7 1 Treads 6 | . . 5 1 Leg 6 | 2 2 2 . Wheel . | . . . . Hover . | . . . . Flight . | . . . . Utility 7 | 2 1 4 . Device 4 | 1 . 3 . Storage 3 | 1 1 1 . Processor . | . . . . Hackware . | . . . . Protection . | . . . . Artifact . | . . . . Weapon 11 | 2 3 6 . Energy Gun 2 | 1 . 1 . Energy Cannon . | . . . . Ballistic Gun 4 | 1 1 2 . Ballistic Cannon 2 | . . 2 . Launcher . | . . . . Special Weapon 3 | . 2 1 . Impact Weapon . | . . . . Slashing Weapon . | . . . . Piercing Weapon . | . . . . Special Melee Weapon . | . . . . Unidentified Prototypes 1 | . . 1 . Parts Lost 15 | . 1 6 8 Power 1 | . . . 1 Propulsion 6 | . . 1 5 Utility 3 | . . 2 1 Weapon 5 | . 1 3 1 Highest Loss Streak 9 | . 1 3 9 To Critical Strikes . | . . . . Average Slot Usage (%) 95 | . 97 96 44 Engine 11 | . 13 11 5 Treads 12 | . . 21 12 Leg 23 | . 28 21 5 Device 11 | . 14 10 9 Storage 12 | . 14 11 11 Energy Gun 6 | . 14 2 . Ballistic Gun 6 | . 3 8 . Ballistic Cannon 4 | . . 7 . Special Weapon 4 | . 8 2 . Naked Turns . | . . . . Heaviest Build 34 | 10 19 34 28 Greatest Support 40 | 20 26 40 40 Greatest Overweight (x) 6 | 2 . . 6 Average Overweight (x) . | . . . 2 Largest Inventory Capacity 15 | 8 10 15 15 Average Capacity 9 | 7 8 10 15 Most Carried 10 | 8 10 10 9 Average Carried 8 | 7 8 9 8 Final Capacity 15 | 8 10 15 15 Final Carried 10 | 8 10 9 8 Class Distribution -------------------- 100% | Mutant Dominant Class ---------------- Mutant | -10/Materials Mutant | -9/Materials Mutant | -9/Mines Resources | -11 -10 -9 -9 ----------- Run | Jun Mat Mat Min Matter Collected 906 | 263 80 483 80 Remotely . | . . . . Salvage Created 969 | 73 302 594 . Parts 75 | 5 23 47 . Haulers Intercepted 1 | . 1 . . Recyclers Shooed 1 | . . 1 . Parts Field Recycled . | . . . . Retrieved Matter . | . . . . Parts Self-Destructed . | . . . . Prevented . | . . . . Kills | -11 -10 -9 -9 ------- Run | Jun Mat Mat Min Combat Hostiles Destroyed 28 | . 6 22 . Guns 14 | . 4 10 . Cannons 13 | . 1 12 . AOE 1 | . 1 . . Classes Destroyed 7 | 2 4 1 . Worker 1 | . 1 . . Tunneler 1 | 1 . . . Hauler 1 | . 1 . . Recycler 1 | 1 . . . Swarmer 9 | . 2 7 . Grunt 16 | . 4 12 . Sentry 3 | . . 3 . Best Kill Streak 4 | 1 4 4 . Combat Bots Only 4 | . 3 4 . Max Kills in Single Turn 2 | 1 2 2 . Gunslinging . | . . . . Exploded 1 | . 1 . . Melee . | . . . . Uniques/NPCs Destroyed . | . . . . Combat | -11 -10 -9 -9 -------- Run | Jun Mat Mat Min Damage Taken 2348 | . 258 1189 901 Core 462 | . 55 41 366 Absorbed by Shields . | . . . . Regen/Repaired (Parts) 368 | . . 368 . Core Remaining (%) 89 | 100 78 . . Volleys Fired 93 | 3 19 67 4 Largest 2 | 2 2 2 1 Hottest 60 | 60 60 60 23 Shots Fired 164 | 4 28 128 4 Gun 89 | 4 14 67 4 Cannon 58 | . . 58 . Launcher . | . . . . Special 17 | . 14 3 . Kinetic 123 | 1 . 118 4 Thermal 17 | . 14 3 . Explosive . | . . . . Electromagnetic 24 | 3 14 7 . Robot Hit Streak 16 | 2 9 16 3 Robot Miss Streak 6 | 1 2 6 1 Penetration Max . | . . . . Secondary Targets . | . . . . Shots Hit Robots 96 | 2 15 76 3 Core Hits 44 | 2 11 31 . Critical Kills . | . . . . Critical Parts Destroyed . | . . . . Critical Strikes 3 | . . 3 . Blast 2 | . . 2 . Corrupt 1 | . . 1 . Melee Attacks . | . . . . Impact . | . . . . Slashing . | . . . . Piercing . | . . . . Sneak Attacks . | . . . . Combat Hostiles . | . . . . Follow-up Attacks . | . . . . Damage Inflicted 1580 | 27 290 1205 58 Guns 786 | 27 120 598 41 Cannons 575 | . . 575 . Explosions 105 | . 105 . . Melee . | . . . . Ramming 17 | . . . 17 Kinetic 1147 | . . 1106 41 Thermal 202 | . 170 32 . Explosive . | . . . . Electromagnetic 214 | 27 120 67 . Impact . | . . . . Slashing . | . . . . Piercing . | . . . . Highest Corruption . | . . . . Average Corruption . | . . . . Corruption Purged . | . . . . Corruption Blocked . | . . . . Overload Shots . | . . . . Overflow Damage . | . . . . Projectiles . | . . . . Explosions . | . . . . Melee . | . . . . Knockbacks 6 | . . 6 . Impact . | . . . . Kinetic 5 | . . 5 . Secondary 1 | . . 1 . Self-Inflicted Damage . | . . . . Shots . | . . . . Rammed 10 | . . . 10 Targets Rammed 10 | . . . 10 Kicked . | . . . . Crushed . | . . . . Highest Temperature 258 | . 9 258 5 Average Temperature 30 | . 3 33 3 Received Heat Transfer 1194 | . 78 588 528 Siege Activations . | . . . . Robots Corrupted . | . . . . Combat Hostiles . | . . . . Parts Fried 1 | . . 1 . Impact Corruptions . | . . . . Robots Melted . | . . . . Combat Hostiles . | . . . . Parts Melted . | . . . . Heat Transferred 433 | . 322 111 . Parts Sabotaged . | . . . . Parts Stolen . | . . . . Parts Stripped . | . . . . Power Chain Reactions 1 | . 1 . . Missiles Intercepted . | . . . . Alert | -11 -10 -9 -9 ------- Run | Jun Mat Mat Min Peak Influence 455 | 10 111 455 132 Initial 132 | . 6 35 132 Average 112 | 8 14 203 83 Maximum Alert Level 2 | . . 2 . Low Security (%) 75 | 100 100 51 100 Level 1 19 | . . 37 . Level 2 5 | . . 10 . Level 3 . | . . . . Level 4 . | . . . . Level 5 . | . . . . High Security . | . . . . Max Security . | . . . . Squads Dispatched 4 | . 1 3 . Investigation 3 | . 1 2 . Extermination . | . . . . Reinforcement 1 | . . 1 . Assault . | . . . . Garrison . | . . . . Intercept . | . . . . Searches Triggered . | . . . . Construction Impeded . | . . . . Haulers Reinforced . | . . . . Active Scanning Responses . | . . . . Cargo Convoy Interrupts . | . . . . Stealth | -11 -10 -9 -9 --------- Run | Jun Mat Mat Min Distress Signals 4 | . 1 3 . Communications Jammed . | . . . . Distress Signals . | . . . . Times Spotted 46 | . 10 31 5 Peak Tracking Total 6 | . 5 6 4 Tactical Retreats 3 | . 1 2 . Traps | -11 -10 -9 -9 ------- Run | Jun Mat Mat Min Traps Triggered . | . . . . Indirectly . | . . . . Trap Hack Attempts . | . . . . Triggered . | . . . . Disarmed . | . . . . Reprogrammed . | . . . . Reused . | . . . . Traps Extracted . | . . . . Installed . | . . . . Triggered . | . . . . Machines | -11 -10 -9 -9 ---------- Run | Jun Mat Mat Min Machines Disabled 2 | . . 2 . Max in Single Turn 1 | . . 1 . Machines Repaired . | . . . . Machines Sabotaged . | . . . . Overloaded Fab Kills . | . . . . Hacking | -11 -10 -9 -9 --------- Run | Jun Mat Mat Min Machines Accessed 6 | . 1 5 . Terminals 3 | . 1 2 . Fabricators . | . . . . Repair Stations 1 | . . 1 . Recycling Units 2 | . . 2 . Scanalyzers . | . . . . Garrison Access . | . . . . Total Hacks 26 | . 2 24 . Successful 15 | . . 15 . Failed 11 | . 2 9 . Catastrophic . | . . . . Database Lockouts . | . . . . Manual 7 | . 2 5 . Terminals 9 | . 2 7 . Fabricators . | . . . . Repair Stations 8 | . . 8 . Recycling Units 9 | . . 9 . Scanalyzers . | . . . . Garrison Access . | . . . . Terminal Hacks 2 | . . 2 . Alert Level 2 | . . 2 . Fabricator Hacks . | . . . . Repair Station Hacks 8 | . . 8 . Scan Component 4 | . . 4 . Repair 4 | . . 4 . Recycling Unit Hacks 3 | . . 3 . Process 1 | . . 1 . Report Inventory 1 | . . 1 . Retrieve Matter 1 | . . 1 . Scanalyzer . | . . . . Garrison Access Hacks . | . . . . Unauthorized Hacks 2 | . . 2 . Terminals . | . . . . Fabricators . | . . . . Repair Stations . | . . . . Recycling Units 2 | . . 2 . Mask 2 | . . 2 . Scanalyzers . | . . . . Garrison Access . | . . . . Data Cores Recovered . | . . . . Used . | . . . . Hacking Detections 6 | . 1 5 . Full Trace Events 3 | . 1 2 . Feedback Events . | . . . . Feedback Blocked . | . . . . Robot Schematics Acquired . | . . . . Robots Built . | . . . . Authchips . | . . . . Time . | . . . . Total Robot Build Rating . | . . . . Part Schematics Acquired . | . . . . Parts Built . | . . . . Authchips . | . . . . Time . | . . . . Total Part Build Rating . | . . . . Parts Repaired 4 | . . 4 . Time 116 | . . 116 . Parts Recycled . | . . . . Recycled Matter 3 | . . 3 . Retrieved Matter 3 | . . 3 . Retrieved Components . | . . . . Parts Scanalyzed . | . . . . Part Schematics Acquired . | . . . . Parts Damaged . | . . . . Bothacking | -11 -10 -9 -9 ------------ Run | Jun Mat Mat Min Used RIF Installer . | . . . . Robots Hacked . | . . . . Non-combat . | . . . . Combat . | . . . . Robot Hacks Applied . | . . . . Relay Couplers Released . | . . . . Fabnet Peak Effective % . | . . . . Robots Rewired . | . . . . Allies Hacked . | . . . . Hacks Repelled . | . . . . Allies | -11 -10 -9 -9 -------- Run | Jun Mat Mat Min Total Allies . | . . . . Largest Group . | . . . . Highest-Rated Group . | . . . . Highest-Rated Ally . | . . . . Total Orders . | . . . . Ally Attacks . | . . . . Total Damage . | . . . . Kills . | . . . . Allies Corrupted . | . . . . Allies Melted . | . . . . Intel | -11 -10 -9 -9 ------- Run | Jun Mat Mat Min Robot Analysis Total . | . . . . Derelict Logs Recovered . | . . . . Drone Launches . | . . . . Drone Recoveries . | . . . . Exploration | -11 -10 -9 -9 ------------- Run | Jun Mat Mat Min Turns Passed 1676 | 176 582 852 66 Spaces Moved 648 | 55 257 320 16 Core 21 | 15 . . 6 Treads 24 | . . 14 10 Legs 603 | 40 257 306 . Wheels . | . . . . Hover . | . . . . Flight . | . . . . Fastest Speed 50 | 50 120 120 160 Average Speed 123 | 111 120 121 256 Slowest Speed 350 | 150 120 160 350 Overloaded Moves . | . . . . Propulsion Burnouts . | . . . . Robots Hopped . | . . . . Cave-ins Triggered . | . . . . Exploration Rate (%) 16 | 4 33 27 3 Regions Visited 3 Branch Regions 1 Pre-discovered Areas . | . . . . Known Exits Taken . | . . . . Unknown Exits Taken 3 | 1 1 1 . Scrap Searched . | . . . . Spaces Dug . | . . . . Terrain Destroyed 2 | . 2 . . Melee . | . . . . Projectile . | . . . . AOE 2 | . 2 . . Terrain Rammed . | . . . . Walls Destroyed . | . . . . Machines Disabled . | . . . . Actions | -11 -10 -9 -9 --------- Run | Jun Mat Mat Min Total 1337 | 165 492 649 31 Wait 518 | 89 193 236 . Move 645 | 54 256 319 16 Hop . | . . . . Pick Up 26 | 13 7 6 . Fast Attach 7 | 1 1 5 . Attach 14 | 5 1 7 1 Detach . | . . . . Swap 12 | . 6 6 . Drop 12 | . 9 3 . Fire 93 | 3 19 67 4 Melee . | . . . . Ram . | . . . . Kick . | . . . . Crush 10 | . . . 10 Escape Stasis . | . . . . Rewire . | . . . . Trap . | . . . . Miscellaneous . | . . . . Route ------- -11/Junkyard -10/Materials -9/Materials -9/Mines History --------- Turn | Location | Event 25 | -11/Junkyard | Discovered new exit (range 15) 177 | -11/Junkyard | Entered Materials 301 | -10/Materials | Build established: Mutant 667 | -10/Materials | Discovered new exit (range 16) 759 | -10/Materials | Entered another Materials area 759 | -9/Materials | Evolved 2 slots: Propulsion x2 944 | -9/Materials | Lost 3 parts (1u2w) 1177 | -9/Materials | Repaired Imp. Aluminum Leg 1211 | -9/Materials | Repaired Imp. Aluminum Leg 1238 | -9/Materials | Repaired Lgt. Cannon 1266 | -9/Materials | Repaired Lgt. Treads 1603 | -9/Materials | Discovered new exit (range 6) 1611 | -9/Materials | Entered Mines 1660 | -9/Mines | Core integrity fell below 50% 1668 | -9/Mines | Core integrity fell below 20% 1677 | -9/Mines | Destroyed by G-34 Mercenary with Small Laser Last Messages --------------- 01617_ Hvy. Assault Rifle destroyed. 01622_ Slammed into G-47 Trooper. 01625_ Acquired 80 matter. 01627_ Slammed into G-34 Mercenary. 01629_ Imp. Aluminum Leg destroyed. 01630_ Slammed into G-34 Mercenary. 01633_ Imp. Aluminum Leg destroyed. 01635_ Slammed into G-47 Trooper. 01643_ Lgt. Treads destroyed. 01646_ C-30 ARC bursts open, deploying its payload. 01646_ G-47 Trooper unfolds itself. 01646_ G-34 Mercenary unfolds itself. 01647_ Imp. Ion Engine destroyed. 01648_ G-34 Mercenary destroyed. 01655_ Lgt. Treads destroyed. 01661_ Heat Sink destroyed. 01663_ G-34 Mercenary suffers critical hit (Burn). 01663_ G-34 Mercenary destroyed. 01663_ Critical hit (Burn: +37). 01675_ R-06 Scavenger collects Ion Engine. Map ----- +----------------------------------------------------+ | ?????????????????????????????????????????????????? | | ?????????????????????????????????????????????????? | | ?????????????????????????????????????????????????? | | ?????????????????????????????????????????????????? | | ?????????????????????????????????????????????????? | | ?????????????????????????????????????????????????? | | ?????????????????????????????????????????????????? | | ?????????????????????????????????????????????????? | | ?????????????????????????????????????????????????? | | ?????????????????????????????????????????????????? | | ?????????????????????????????????????????????????? | | ?????????????????????????????????????????????????? | | ?????????????????????????????????????????????????? | | ?????????????????????????????????????????????????? | | ?????????????????????????????????????????????????? | | ?????????????????????????????????????????????????? | | ?????????????????????????????????????????????????? | | ?????????????????????????????????????????????????? | | ?????????????????????????????????????????????????? | | ?????????????????????????????????????????????????? | | ?????????????????????????????????????????????????? | | ?????????????????????????????????????????????????? | | ???????????????????????#??##########?????????????? | | ???????????????????????# ?#%%%% #?????????????? | | ??????????????????????##r##%g% #?????????????? | | ??????????????????????# %@g%g% #?????????????? | | ??????????????????????# ###=== #?????????????? | | ??????????????????????????#%![ #?????????????? | | ??????????????????????????#= #?????????????? | | ??????????????????????????# #?????????????? | | ??????????????????????????##########?????????????? | | ?????????????????????????????????????????????????? | | ?????????????????????????????????????????????????? | | ?????????????????????????????????????????????????? | | ?????????????????????????????????????????????????? | | ?????????????????????????????????????????????????? | | ?????????????????????????????????????????????????? | | ?????????????????????????????????????????????????? | | ?????????????????????????????????????????????????? | | ?????????????????????????????????????????????????? | | ?????????????????????????????????????????????????? | | ?????????????????????????????????????????????????? | | ?????????????????????????????????????????????????? | | ?????????????????????????????????????????????????? | | ?????????????????????????????????????????????????? | | ?????????????????????????????????????????????????? | | ?????????????????????????????????????????????????? | | ?????????????????????????????????????????????????? | | ?????????????????????????????????????????????????? | | ?????????????????????????????????????????????????? | +----------------------------------------------------+ Best States ------------- Heat Dissipation 38 Energy Generation 12 Energy Capacity 265 Matter Stores 300 Matter Capacity 300 Sight Range 16 Terrain Scan Range 16 Terrain Scan Density 10 Evasion (%) 55 Recoil Reduction 2 Item Schematics ----------------- None Robot Schematics ------------------ None Fabricated ------------ Nothing Alien Tech Used ----------------- None Achievements -------------- None Challenges ------------ None Game ------ Seed SuspensionPortableRipper Manual? 0 Play Time 00:22:05 Cumulative 69.1 hours Start 2023.07.26 @ 22:03:46 End 2023.07.26 @ 22:25:43 Sessions 1 Manual Loads 0 Difficulty Rogue Special Mode None Game No. 91 Rogue 91 Adventurer 0 Explorer 0 Win Type - Total 0 Types 0/0/0/0/0/0/0/0/0 Lore% 25 Gallery% 40 Achievement% 27 Wizard Run 0 Options --------- ASCII 0 Keyboard 0 Movement Mouse Keybinds 0 Fullscreen 1 Font 24/Smallcaps Map View 76x50 Tactical HUD 1 Map Filters NONE Filters NONE Steam 1 RUN: 97c7d0c3-fb43-44c6-b3c3-03a76d6bedb4